fUST/lending_fUST_20250731
["ID","MTS","AMOUNT","RATE_DAILY","PERIOD"]
[376389586,1753960262252,-1504.21,0.00023287,2]
[376389587,1753960262261,-1791.05,0.00023287,2]
[376389588,1753960262270,-487.86,0.00023287,2]
[376389589,1753960262280,-460.0,0.00023287,2]
[376389590,1753960262289,-460.0,0.00023287,2]
[376389591,1753960262299,-1255.72,0.00023287,2]
[376389592,1753960262308,-460.0,0.00023287,2]
[376389593,1753960262318,-1194.71,0.00023287,2]
[376389594,1753960262328,-1160.64,0.00023287,2]
[376389595,1753960262337,-460.0,0.00023287,2]
[376389596,1753960262347,-345.25,0.00023287,2]
[376389597,1753960262357,-477.13,0.00023287,2]
[376389598,1753960262366,-460.0,0.00023287,2]
[376389599,1753960262375,-1147.52,0.00023287,2]
[376389600,1753960262385,-460.0,0.00023287,2]
[376389601,1753960262395,-460.0,0.00023287,2]
[376389602,1753960262405,-460.0,0.00023287,2]
[376389603,1753960262414,-460.0,0.00023287,2]
[376389604,1753960262423,-460.0,0.00023287,2]
[376389605,1753960262432,-1083.19,0.00023287,2]
[376389606,1753960262442,-792.76,0.00023287,2]
[376389607,1753960262451,-607.64,0.00023287,2]
[376389608,1753960262461,-2520.34,0.00023287,2]
[376389609,1753960262470,-460.0,0.00023287,2]
[376389610,1753960262479,-4136.26,0.00023287,2]
[376389611,1753960262489,-754.02,0.00023287,2]
[376389612,1753960262499,-2146.0,0.00023347,2]
[376389613,1753960262508,-635.0,0.00023347,2]
[376389614,1753960262516,-407.0,0.00023348,2]
[376389615,1753960262526,-151.0,0.00023348,7]
[376389616,1753960262535,-151.0,0.00023348,7]
[376389617,1753960262545,-200.0,0.00023367,15]
[376389618,1753960262554,-200.0,0.00023367,15]
[376389619,1753960262563,-200.0,0.00023367,15]
[376389620,1753960262574,-200.0,0.00023367,15]
[376389621,1753960262583,-200.0,0.00023367,15]
[376389622,1753960262594,-200.0,0.00023367,15]
[376389623,1753960262603,-366.0,0.00023367,15]
[376389624,1753960262612,-168.0,0.00023409,2]
[376389625,1753960262621,-424.0,0.00023493,2]
[376389626,1753960262630,-2267.41107307,0.00023521,9]
[376389627,1753960262639,-460.0,0.00023561,2]
[376389628,1753960262648,-1339.98,0.00023561,2]
[376389629,1753960262658,-1173.64,0.00023561,2]
[376389630,1753960262667,-952.94,0.00023561,2]
[376389631,1753960262676,-1504.21,0.00023561,2]
[376389632,1753960262686,-1791.05,0.00023561,2]
[376389633,1753960262695,-487.86,0.00023561,2]
[376389634,1753960262705,-460.0,0.00023561,2]
[376389635,1753960262715,-367.99,0.00023561,2]
[376389636,1753960262724,-1255.72,0.00023561,2]
[376389637,1753960262734,-460.0,0.00023561,2]
[376389638,1753960262743,-1194.71,0.00023561,2]
[376389639,1753960262753,-1160.64,0.00023561,2]
[376389640,1753960262762,-397.35,0.00023561,2]
[376389641,1753960262772,-477.13,0.00023561,2]
[376389642,1753960262785,-252.26970704,0.00023561,2]
[376389643,1753960262795,-1147.52,0.00023561,2]
[376389644,1753960262805,-460.0,0.00023561,2]
[376389645,1753960262814,-460.0,0.00023561,2]
[376389646,1753960262827,-460.0,0.00023561,2]
[376389647,1753960262836,-460.0,0.00023561,2]
[376389648,1753960262847,-460.0,0.00023561,2]
[376389649,1753960262857,-1083.19,0.00023561,2]
[376389650,1753960262867,-792.76,0.00023561,2]
[376389651,1753960262877,-2520.34,0.00023561,2]
[376389652,1753960262886,-460.0,0.00023561,2]
[376389653,1753960262895,-4136.26,0.00023561,2]
[376389654,1753960262904,-754.02,0.00023561,2]
[376389655,1753960262914,-2202.85,0.000236,7]
[376389656,1753960262923,-151.0,0.000236,9]
[376389657,1753960262932,-424.0,0.00023608,2]
[376389658,1753960262942,-1553.54,0.000237,7]
[376389659,1753960262952,-15238.62,0.000237,7]
[376389660,1753960262961,-247.36,0.00023707,2]
[376389661,1753960262971,-160.0,0.00023711,3]
[376389662,1753960262981,-181.930651,0.00023744,2]
[376389663,1753960262991,-514.92,0.0002375,7]
[376389664,1753960263001,-514.92,0.0002375,7]
[376389665,1753960263011,-2267.41107307,0.00023762,9]
[376389666,1753960263020,-752.14,0.00023783,7]
[376389667,1753960263029,-151.0,0.00023792,5]
[376389668,1753960263039,-548.11,0.00023796,7]
[376389669,1753960263049,-312.16666667,0.000238,7]
[376389670,1753960263059,-548.11,0.00023813,7]
[376389671,1753960263069,-460.0,0.00023835,2]
[376389672,1753960263078,-1339.98,0.00023835,2]
[376389673,1753960263088,-1173.64,0.00023835,2]
[376389674,1753960263098,-952.94,0.00023835,2]
[376389675,1753960263107,-1791.05,0.00023835,2]
[376389676,1753960263116,-1504.21,0.00023835,2]
[376389677,1753960263126,-487.86,0.00023835,2]
[376389678,1753960263136,-460.0,0.00023835,2]
[376389679,1753960263146,-1255.72,0.00023835,2]
[376389680,1753960263156,-460.0,0.00023835,2]
[376389681,1753960263166,-1194.71,0.00023835,2]
[376389682,1753960263177,-1160.64,0.00023835,2]
[376389683,1753960263187,-477.13,0.00023835,2]
[376389684,1753960263197,-1147.52,0.00023835,2]
[376389685,1753960263207,-460.0,0.00023835,2]
[376389686,1753960263216,-460.0,0.00023835,2]
[376389687,1753960263226,-460.0,0.00023835,2]
[376389688,1753960263235,-460.0,0.00023835,2]
[376389689,1753960263245,-460.0,0.00023835,2]
[376389690,1753960263256,-1083.19,0.00023835,2]
[376389691,1753960263267,-792.76,0.00023835,2]
[376389692,1753960263276,-2520.34,0.00023835,2]
[376389693,1753960263286,-520.32,0.00023835,2]
[376389694,1753960263296,-4136.26,0.00023835,2]
[376389695,1753960263305,-754.02,0.00023835,2]
[376389696,1753960263315,-168.0,0.00023848,2]
[376389697,1753960263325,-150.0,0.00023857,2]
[376389698,1753960263334,-741.01584485,0.00023885,2]
[376389699,1753960263343,-2961.09931603,0.00023885,2]
[376389700,1753960263353,-571.20384232,0.00023885,2]
[376389701,1753960263362,-684.91238291,0.00023885,2]
[376389702,1753960263371,-2736.90988212,0.00023885,2]
[376389703,1753960263380,-2399.87068217,0.000239,2]
[376389704,1753960263390,-548.11,0.00023913,7]
[376389705,1753960263400,-424.0,0.00023966,2]
[376389706,1753960263409,-168.0,0.00023973,2]
[376389707,1753960263419,-160.0,0.00024,7]
[376389708,1753960263428,-160.0,0.00024,7]
[376389709,1753960263438,-160.0,0.00024,7]
[376389710,1753960263447,-841.37753757,0.00024,7]
[376389711,1753960263457,-526.848153,0.00024,7]
[376389712,1753960263467,-526.848153,0.00024,7]
[376389713,1753960263476,-1000.0,0.00024,4]
[376389714,1753960263486,-2267.41107307,0.00024003,10]
[376389715,1753960263496,-548.11,0.00024013,7]
[376389716,1753960263506,-500.0,0.00024107,2]
[376389717,1753960263515,-460.0,0.00024109,2]
[376389718,1753960263525,-1339.98,0.00024109,2]
[376389719,1753960263535,-1173.64,0.00024109,2]
[376389720,1753960263544,-952.94,0.00024109,2]
[376389721,1753960263553,-1791.05,0.00024109,2]
[376389722,1753960263563,-1504.21,0.00024109,2]
[376389723,1753960263572,-487.86,0.00024109,2]
[376389724,1753960263582,-460.0,0.00024109,2]
[376389725,1753960263592,-1255.72,0.00024109,2]
[376389726,1753960263602,-226.06,0.00024109,2]
[376389727,1753960263611,-1194.71,0.00024109,2]
[376389728,1753960263620,-1160.64,0.00024109,2]
[376389729,1753960263630,-477.13,0.00024109,2]
[376389730,1753960263640,-1147.52,0.00024109,2]
[376389731,1753960263650,-460.0,0.00024109,2]
[376389732,1753960263660,-460.0,0.00024109,2]
[376389733,1753960263670,-150.04596265,0.00024109,2]
[376389734,1753960263679,-413.85,0.00024109,2]
[376389735,1753960263690,-460.0,0.00024109,2]
[376389736,1753960263699,-1083.19,0.00024109,2]
[376389737,1753960263710,-792.76,0.00024109,2]
[376389738,1753960263719,-2520.34,0.00024109,2]
[376389739,1753960263728,-4136.26,0.00024109,2]
[376389740,1753960263740,-754.02,0.00024109,2]
[376389741,1753960263750,-500.0,0.00024111,2]
[376389742,1753960263760,-548.11,0.00024113,7]
[376389743,1753960263770,-424.0,0.0002413,2]
[376389744,1753960263784,-151.0,0.00024152,7]
[376389745,1753960263795,-186.425955,0.00024152,7]
[376389746,1753960263804,-186.425955,0.00024152,7]
[376389747,1753960263815,-151.0,0.00024152,7]
[376389748,1753960263825,-151.0,0.00024152,7]
[376389749,1753960263834,-1164.475008,0.00024152,2]
[376389750,1753960263844,-151.0,0.000242,9]
[376389751,1753960263855,-548.11,0.00024213,7]
[376389752,1753960263865,-168.0,0.00024243,2]
[376389753,1753960263875,-2267.41107307,0.00024245,10]
[376389754,1753960263885,-151.0,0.00024266,6]
[376389755,1753960263895,-500.0,0.00024274,2]
[376389756,1753960263905,-247.36,0.00024276,2]
[376389757,1753960263916,-2200.0,0.00024291,2]
[376389758,1753960263925,-548.12,0.00024313,7]
[376389759,1753960263935,-500.0,0.0002432,2]
[376389760,1753960263945,-168.0,0.00024355,2]
[376389761,1753960263954,-500.0,0.00024378,2]
[376389762,1753960263966,-334.02,0.00024383,2]
[376389763,1753960263975,-1339.98,0.00024383,2]
[376389764,1753960263985,-1173.64,0.00024383,2]
[376389765,1753960263995,-952.94,0.00024383,2]
[376389766,1753960264007,-1791.05,0.00024383,2]
[376389767,1753960264017,-1504.21,0.00024383,2]
[376389768,1753960264026,-487.86,0.00024383,2]
[376389769,1753960264036,-460.0,0.00024383,2]
[376389770,1753960264045,-1255.72,0.00024383,2]
[376389771,1753960264056,-1194.71,0.00024383,2]
[376389772,1753960264067,-1160.64,0.00024383,2]
[376389773,1753960264077,-477.13,0.00024383,2]
[376389774,1753960264087,-1147.52,0.00024383,2]
[376389775,1753960264096,-460.0,0.00024383,2]
[376389776,1753960264107,-460.0,0.00024383,2]
[376389777,1753960264117,-460.0,0.00024383,2]
[376389778,1753960264126,-1083.19,0.00024383,2]
[376389779,1753960264136,-792.76,0.00024383,2]
[376389780,1753960264146,-2520.34,0.00024383,2]
[376389781,1753960264155,-4136.26,0.00024383,2]
[376389782,1753960264165,-754.02,0.00024383,2]
[376389783,1753960264174,-424.0,0.00024387,2]
[376389784,1753960264184,-500.0,0.00024422,2]
[376389785,1753960264193,-500.0,0.00024438,2]
[376389786,1753960264202,-424.0,0.00024451,2]
[376389787,1753960264212,-500.0,0.00024472,2]
[376389788,1753960264221,-151.0,0.00024486,7]
[376389789,1753960264231,-2267.41107307,0.00024486,11]
[376389790,1753960264241,-32076.05,0.000245,2]
[376389791,1753960264250,-151.0,0.000245,7]
[376389792,1753960264260,-151.0,0.000245,7]
[376389793,1753960264269,-380.067796,0.000245,7]
[376389794,1753960264278,-380.067796,0.000245,7]
[376389795,1753960264287,-151.0,0.000245,7]
[376389796,1753960264297,-151.0,0.000245,7]
[376389797,1753960264307,-271.729185,0.000245,7]
[376389798,1753960264316,-500.0,0.00024517,2]
[376389799,1753960264325,-151.664134,0.00024576,3]
[376389800,1753960264335,-500.0,0.00024623,2]
[376389801,1753960264345,-300.0,0.00024657,4]
[376389802,1753960264354,-300.0,0.00024657,4]
[376389803,1753960264364,-362.15048618,0.00024657,4]
[376389804,1753960264373,-1339.98,0.00024657,2]
[376389805,1753960264383,-1173.64,0.00024657,2]
[376389806,1753960264392,-952.94,0.00024657,2]
[376389807,1753960264403,-1791.05,0.00024657,2]
[376389808,1753960264412,-1504.21,0.00024657,2]
[376389809,1753960264421,-487.86,0.00024657,2]
[376389810,1753960264431,-561.18,0.00024657,2]
[376389811,1753960264440,-1255.72,0.00024657,2]
[376389812,1753960264449,-1194.71,0.00024657,2]
[376389813,1753960264459,-1160.64,0.00024657,2]
[376389814,1753960264468,-477.13,0.00024657,2]
[376389815,1753960264478,-1147.52,0.00024657,2]
[376389816,1753960264488,-492.9445483,0.00024657,2]
[376389817,1753960264498,-460.0,0.00024657,2]
[376389818,1753960264509,-222.43,0.00024657,2]
[376389819,1753960264525,-1083.19,0.00024657,2]
[376389820,1753960264535,-792.76,0.00024657,2]
[376389821,1753960264544,-2520.34,0.00024657,2]
[376389822,1753960264553,-4136.26,0.00024657,2]
[376389823,1753960264562,-754.02,0.00024657,2]
[376389824,1753960264571,-200.0,0.00024658,15]
[376389825,1753960264581,-221.92136843,0.00024658,2]
[376389826,1753960264590,-521.0,0.00024658,2]
[376389827,1753960264599,-151.0,0.00024673,7]
[376389828,1753960264608,-151.0,0.00024673,7]
[376389829,1753960264618,-11372.15489099,0.000247,2]
[376389830,1753960264627,-151.664134,0.00024705,6]
[376389831,1753960264636,-2267.41107307,0.00024728,11]
[376389832,1753960264645,-151.0,0.0002474,6]
[376389833,1753960264654,-500.0,0.00024744,2]
[376389834,1753960264663,-151.664134,0.0002476,2]
[376389835,1753960264673,-500.0,0.0002479,2]
[376389836,1753960264683,-204.18,0.00024795,2]
[376389837,1753960264693,-151.0,0.000248,7]
[376389838,1753960264703,-832.659172,0.000248,5]
[376389839,1753960264713,-151.0,0.000248,7]
[376389840,1753960264723,-151.0,0.000248,7]
[376389841,1753960264734,-122081.686616,0.000248,2]
[376389842,1753960264743,-500.0,0.00024803,2]
[376389843,1753960264754,-500.0,0.00024832,2]
[376389844,1753960264763,-247.36,0.00024845,2]
[376389845,1753960264774,-168.0,0.00024885,2]
[376389846,1753960264785,-151.0,0.00024885,7]
[376389847,1753960264795,-151.0,0.00024885,7]
[376389848,1753960264804,-151.0,0.00024885,7]
[376389849,1753960264814,-151.0,0.00024885,7]
[376389850,1753960264823,-151.0,0.00024885,7]
[376389851,1753960264833,-151.0,0.00024885,7]
[376389852,1753960264944,-200.51240394,0.00024899,2]
[376389853,1753960264954,-151.0,0.00024899,7]
[376389854,1753960264963,-151.0,0.00024899,7]
[376389855,1753960264973,-151.0,0.000249,7]
[376389856,1753960264983,-151.0,0.000249,7]
[376389857,1753960264992,-299.632594,0.000249,7]
[376389858,1753960265001,-151.0,0.000249,7]
[376389859,1753960265010,-299.632594,0.000249,7]
[376389860,1753960265019,-151.0,0.000249,7]
[376389861,1753960265029,-151.0,0.000249,7]
[376389862,1753960265038,-151.0,0.000249,7]
[376389863,1753960265047,-237.7654,0.000249,7]
[376389864,1753960265056,-2202.85,0.000249,7]
[376389865,1753960265065,-151.0,0.000249,7]
[376389866,1753960265075,-151.0,0.000249,7]
[376389867,1753960265084,-151.0,0.000249,7]
[376389868,1753960265093,-151.0,0.000249,7]
[376389869,1753960265102,-151.0,0.000249,7]
[376389870,1753960265111,-151.0,0.000249,7]
[376389871,1753960265120,-151.0,0.000249,7]
[376389872,1753960265129,-151.0,0.000249,7]
[376389873,1753960265139,-151.0,0.000249,7]
[376389874,1753960265147,-1756.0,0.000249,3]
[376389875,1753960265156,-1756.0,0.000249,3]
[376389876,1753960265165,-1756.0,0.000249,3]
[376389877,1753960265174,-151.0,0.000249,7]
[376389878,1753960265184,-151.0,0.000249,7]
[376389879,1753960265193,-154.0,0.000249,3]
[376389880,1753960265201,-156.60831965,0.000249,3]
[376389881,1753960265211,-325.0,0.000249,3]
[376389882,1753960265220,-325.0,0.000249,3]
[376389883,1753960265229,-325.0,0.000249,3]
[376389884,1753960265238,-325.0,0.000249,3]
[376389885,1753960265247,-325.0,0.000249,3]
[376389886,1753960265256,-210.979416,0.000249,7]
[376389887,1753960265265,-151.0,0.000249,7]
[376389888,1753960265274,-380.067796,0.000249,7]
[376389889,1753960265283,-380.067796,0.000249,7]
[376389890,1753960265292,-204.252435,0.000249,7]
[376389891,1753960265302,-250615.044156,0.000249,2]
[376389892,1753960265311,-151.0,0.000249,7]
[376389893,1753960265321,-151.0,0.000249,7]
[376389894,1753960265330,-186.425955,0.000249,7]
[376389895,1753960265340,-186.425955,0.000249,7]
[376389896,1753960265350,-151.0,0.000249,7]
[376389897,1753960265359,-151.0,0.000249,7]
[376389898,1753960265369,-1756.0,0.000249,3]
[376389899,1753960265379,-1756.0,0.000249,3]
[376389900,1753960265388,-1756.0,0.000249,3]
[376389901,1753960265397,-1756.0,0.000249,3]
[376389902,1753960265406,-1756.0,0.000249,3]
[376389903,1753960265416,-1756.0,0.000249,3]
[376389904,1753960265425,-1756.0,0.000249,3]
[376389905,1753960265435,-1756.0,0.000249,3]
[376389906,1753960265444,-1756.0,0.000249,3]
[376389907,1753960265453,-1756.0,0.000249,3]
[376389908,1753960265462,-1756.0,0.000249,3]
[376389909,1753960265471,-1274.9990368,0.000249,3]
[376389910,1753960265481,-1339.98,0.00024931,2]
[376389911,1753960265491,-1173.64,0.00024931,2]
[376389912,1753960265500,-952.94,0.00024931,2]
[376389913,1753960265510,-1791.05,0.00024931,2]
[376389914,1753960265519,-1504.21,0.00024931,2]
[376389915,1753960265528,-487.86,0.00024931,2]
[376389916,1753960265538,-1255.72,0.00024931,2]
[376389917,1753960265547,-1194.71,0.00024931,2]
[376389918,1753960265556,-1160.64,0.00024931,2]
[376389919,1753960265566,-477.13,0.00024931,2]
[376389920,1753960265575,-1147.52,0.00024931,2]
[376389921,1753960265584,-460.0,0.00024931,2]
[376389922,1753960265594,-1083.19,0.00024931,2]
[376389923,1753960265603,-792.76,0.00024931,2]
[376389924,1753960265613,-2520.34,0.00024931,2]
[376389925,1753960265622,-4136.26,0.00024931,2]
[376389926,1753960265631,-754.02,0.00024931,2]
[376389927,1753960265641,-521.0,0.00024932,2]
[376389928,1753960265650,-3109.11294258,0.0002495,2]
[376389929,1753960265660,-514.92,0.00024952,7]
[376389930,1753960265670,-2267.41107307,0.00024969,12]
[376389931,1753960265680,-190.0,0.00024977,2]
[376389932,1753960265689,-500.0,0.00024977,2]
[376389933,1753960265699,-1133.063308,0.0002498,5]
[376389934,1753960265708,-500.0,0.00024986,2]
[376389935,1753960265718,-160.0,0.00025,10]
[376389936,1753960265727,-1417.32335394,0.00025,14]
[376389937,1753960265736,-30977.08413532,0.00025,7]
[376389938,1753960265746,-1064.4704388,0.00025,2]
[376389939,1753960265757,-16011.7894998,0.00025,2]
[376389940,1753960265766,-2621.06190973,0.00025,2]
[376389941,1753960265777,-207.84454137,0.00025,2]
[376389942,1753960265787,-2489.14798045,0.00025,2]
[376389943,1753960265796,-500.0,0.00025,5]
[376389944,1753960265806,-1000.0,0.00025,5]
[376389945,1753960265815,-160.0,0.00025,3]
[376389946,1753960265826,-160.0,0.00025,3]
[376389947,1753960265835,-160.0,0.00025,3]
[376389948,1753960265845,-160.0,0.00025,3]
[376389949,1753960265855,-160.0,0.00025,3]
[376389950,1753960265865,-841.37753757,0.00025,3]
[376389951,1753960265874,-460.682337,0.00025,3]
[376389952,1753960265884,-231.48161788,0.00025,3]
[376389953,1753960265893,-526.848153,0.00025,3]
[376389954,1753960265902,-526.848153,0.00025,10]
[376389955,1753960265912,-1000.0,0.00025,6]
[376389956,1753960265921,-312.16666667,0.00025,3]
[376389957,1753960265930,-312.16666667,0.00025,10]
[376389958,1753960265939,-150.0,0.00025025,2]
[376389959,1753960265948,-500.0,0.00025036,2]
[376389960,1753960265958,-514.92,0.00025052,7]
[376389961,1753960265968,-500.0,0.00025074,2]
[376389962,1753960265977,-1553.54,0.000251,7]
[376389963,1753960265987,-15238.62,0.000251,7]
[376389964,1753960265996,-500.0,0.00025112,2]
[376389965,1753960266009,-500.0,0.00025136,2]
[376389966,1753960266019,-500.0,0.00025143,2]
[376389967,1753960266029,-514.92,0.00025152,7]
[376389968,1753960266038,-500.0,0.00025153,2]
[376389969,1753960266047,-1339.98,0.00025205,2]
[376389970,1753960266056,-1173.64,0.00025205,2]
[376389971,1753960266066,-952.94,0.00025205,2]
[376389972,1753960266075,-1791.05,0.00025205,2]
[376389973,1753960266085,-1504.21,0.00025205,2]
[376389974,1753960266094,-487.86,0.00025205,2]
[376389975,1753960266104,-1255.72,0.00025205,2]
[376389976,1753960266113,-1194.71,0.00025205,2]
[376389977,1753960266123,-1160.64,0.00025205,2]
[376389978,1753960266132,-477.13,0.00025205,2]
[376389979,1753960266142,-1147.52,0.00025205,2]
[376389980,1753960266151,-181.15,0.00025205,2]
[376389981,1753960266160,-1083.19,0.00025205,2]
[376389982,1753960266170,-792.76,0.00025205,2]
[376389983,1753960266180,-2520.34,0.00025205,2]
[376389984,1753960266190,-4136.26,0.00025205,2]
[376389985,1753960266200,-754.02,0.00025205,2]
[376389986,1753960266209,-521.0,0.00025206,2]
[376389987,1753960266218,-2267.41107307,0.0002521,12]
[376389988,1753960266228,-151.0,0.00025214,6]
[376389989,1753960266237,-325.0,0.00025245,3]
[376389990,1753960266246,-320.0,0.00025245,3]
[376389991,1753960266257,-514.92,0.00025252,7]
[376389992,1753960266267,-500.0,0.00025297,2]
[376389993,1753960266276,-500.0,0.00025332,2]
[376389994,1753960266285,-514.92,0.00025352,7]
[376389995,1753960266294,-247.36,0.00025414,7]
[376389996,1753960266304,-151.664134,0.00025435,3]
[376389997,1753960266313,-150.429748,0.00025435,3]
[376389998,1753960266322,-150.429748,0.00025435,3]
[376389999,1753960266332,-500.0,0.00025442,2]
[376390000,1753960266341,-2267.41107307,0.00025452,13]
[376390001,1753960266350,-514.92,0.00025452,7]
[376390002,1753960266359,-500.0,0.00025457,2]
[376390003,1753960266368,-1340.14,0.00025479,2]
[376390004,1753960266377,-1173.72,0.00025479,2]
[376390005,1753960266387,-952.97,0.00025479,2]
[376390006,1753960266396,-500.0,0.00025479,2]
[376390007,1753960266405,-1791.12,0.00025479,2]
[376390008,1753960266414,-1504.23102187,0.00025479,2]
[376390009,1753960266423,-487.94,0.00025479,2]
[376390010,1753960266432,-1255.88,0.00025479,2]
[376390011,1753960266441,-1194.77866405,0.00025479,2]
[376390012,1753960266450,-1160.73787298,0.00025479,2]
[376390013,1753960266459,-477.32,0.00025479,2]
[376390014,1753960266469,-1147.6,0.00025479,2]
[376390015,1753960266478,-1083.3695233,0.00025479,2]
[376390016,1753960266487,-792.92,0.00025479,2]
[376390017,1753960266496,-2520.41,0.00025479,2]
[376390018,1753960266508,-4136.37,0.00025479,2]
[376390019,1753960266517,-754.16,0.00025479,2]
[376390020,1753960266526,-521.0,0.0002548,2]
[376390021,1753960266535,-500.0,0.0002551,2]
[376390022,1753960266545,-500.0,0.00025545,2]
[376390023,1753960266554,-515.1,0.00025552,7]
[376390024,1753960266564,-500.0,0.00025553,2]
[376390025,1753960266573,-424.0,0.00025581,2]
[376390026,1753960266583,-151.664134,0.00025583,6]
[376390027,1753960266592,-500.0,0.0002561,5]
[376390028,1753960266601,-500.0,0.00025614,2]
[376390029,1753960266611,-200.0,0.00025659,15]
[376390030,1753960266621,-200.0,0.00025659,15]
[376390031,1753960266631,-200.0,0.00025659,15]
[376390032,1753960266640,-200.0,0.00025659,15]
[376390033,1753960266650,-200.0,0.00025659,15]
[376390034,1753960266660,-200.0,0.00025659,15]
[376390035,1753960266670,-200.0,0.00025659,15]
[376390036,1753960266680,-200.0,0.00025659,15]
[376390037,1753960266689,-200.0,0.00025659,15]
[376390038,1753960266699,-394.0,0.00025659,15]
[376390039,1753960266709,-323.9185187,0.00025671,2]
[376390040,1753960266719,-153.0,0.00025671,2]
[376390041,1753960266728,-364.3585429,0.00025671,2]
[376390042,1753960266737,-500.0,0.00025675,2]
[376390043,1753960266750,-151.0,0.00025688,7]
[376390044,1753960266762,-500.0,0.00025689,2]
[376390045,1753960266772,-2267.41107307,0.00025693,13]
[376390046,1753960266785,-32076.05,0.000257,2]
[376390047,1753960266795,-500.0,0.00025727,2]
[376390048,1753960266804,-500.0,0.00025745,2]
[376390049,1753960266816,-500.0,0.00025753,4]
[376390050,1753960266826,-521.0,0.00025754,2]
[376390051,1753960266835,-186.425955,0.00025762,7]
[376390052,1753960266844,-186.425955,0.00025762,7]
[376390053,1753960266855,-151.0,0.00025762,7]
[376390054,1753960266864,-500.0,0.00025796,2]
[376390055,1753960266873,-168.0,0.00025831,2]
[376390056,1753960266885,-168.0,0.00025897,2]
[376390057,1753960266895,-2267.41107307,0.00025934,14]
[376390058,1753960266905,-505.00415355,0.00025957,2]
[376390059,1753960266915,-306.0,0.00025973,2]
[376390060,1753960266924,-153.0,0.00025973,2]
[376390061,1753960266934,-153.0,0.00025973,2]
[376390062,1753960266943,-153.0,0.00025973,2]
[376390063,1753960266953,-153.0,0.00025973,2]
[376390064,1753960266961,-153.0,0.00025973,2]
[376390065,1753960266972,-153.0,0.00025973,2]
[376390066,1753960266982,-153.0,0.00025973,2]
[376390067,1753960266991,-247.36,0.00025983,7]
[376390068,1753960267004,-500.0,0.00025989,2]
[376390069,1753960267013,-2701.45786104,0.00026,2]
[376390070,1753960267022,-200000.0,0.00026,2]
[376390071,1753960267031,-151.0,0.00026,7]
[376390072,1753960267040,-151.0,0.00026,7]
[376390073,1753960267048,-151.0,0.00026,7]
[376390074,1753960267058,-151.0,0.00026,7]
[376390075,1753960267067,-151.0,0.00026,7]
[376390076,1753960267076,-299.632594,0.00026,7]
[376390077,1753960267085,-151.0,0.00026,7]
[376390078,1753960267094,-299.632594,0.00026,7]
[376390079,1753960267103,-151.0,0.00026,7]
[376390080,1753960267113,-151.0,0.00026,7]
[376390081,1753960267123,-151.0,0.00026,7]
[376390082,1753960267132,-151.0,0.00026,7]
[376390083,1753960267140,-151.0,0.00026,7]
[376390084,1753960267149,-151.0,0.00026,7]
[376390085,1753960267158,-151.0,0.00026,7]